[Event "WYCC 2018 O16"]
[Site "Halkidiki"]
[Date "2018.10.26"]
[Round "7"]
[White "Rodriguez Izquierdo, Luis"]
[Black "Katopodis, Dimitrios"]
[Result "0-1"]
[ECO "B07"]
[WhiteElo "2038"]
[BlackElo "2310"]
[Annotator "NA"]
[PlyCount "126"]
[EventDate "2018.10.20"]
[EventType "swiss"]
[EventCountry "GRE"]
[SourceTitle "playchess.com"]
[Source "ChessBase"]
[SourceQuality "1"]
[TimeControl "40/5400+30:1800+30"]

1. e4 {[%emt 0:00:00]} d6 {[%emt 0:00:00]} 2. d4 {[%emt 0:00:09]} Nf6 {[%emt 0:00:00]} 3. Nc3 {[%emt 0:00:22]} Nbd7 {[%emt 0:00:17]} 4. Nf3 {[%emt 0:00:49]} e5 {[%emt 0:00:17]} 5. Bc4 {[%emt 0:01:18]} Be7 {[%emt 0:00:10]} 6. a4 {[%emt 0:01:01]} O-O {[%emt 0:01:47]} 7. O-O {[%emt 0:00:53]} c6 {[%emt 0:01:08]} 8. h3 {[%emt 0:01:14]} Qc7 {[%emt 0:01:33]} 9. Re1 $14 {[%emt 0:02:07] LiveBook: 220 Games} exd4 {[%emt 0:01:59]} 10. Nxd4 {[%emt 0:01:37]} Ne5 {[%emt 0:00:10]} 11. Bf1 {[%emt 0:02:59]} Re8 {[%emt 0:01:58]} 12. f4 {[%emt 0:07:30]} Ng6 {[%emt 0:00:40]} 13. Qf3 {[%emt 0:06:30]} Bf8 {[%emt 0:03:05]} 14. Be3 {[%emt 0:00:46]} Bd7 {[%emt 0:06:27]} 15. Bf2 {[%emt 0:01:34]} a6 {[%emt 0:03:32]} 16. g4 {[%emt 0:03:14]} h6 {[%emt 0:04:17]} 17. Nf5 {[%emt 0:07:44]} b5 {[%emt 0:12:53]} 18. Bd4 {[%emt 0:06:18]} Nh7 {[%emt 0:08:19]} 19. b3 {[%emt 0:13:33]} d5 {[%emt 0:12:08]} 20. e5 {[%emt 0:04:31]} b4 {[%emt 0:03:06]} 21. Ne2 {[%emt 0:01:17]} c5 {[%emt 0:02:15]} 22. Bb2 {[%emt 0:01:35]} Bc6 {[%emt 0:03:51]} 23. Bg2 {[%emt 0:01:40]} Rad8 {[%emt 0:05:41]} 24. Rad1 {[%emt 0:00:22]} Ba8 {[%emt 0:01:03]} 25. Qf2 {[%emt 0:01:47]} d4 {[%emt 0:01:07]} 26. Bxa8 {[%emt 0:03:17]} Rxa8 {[%emt 0:00:10]} 27. Bc1 {[%emt 0:07:02]} f6 {[%emt 0:00:35]} 28. exf6 {[%emt 0:04:33]} Nxf6 {[%emt 0:00:15]} 29. Neg3 {[%emt 0:00:03]} Nd5 {[%emt 0:10:41]} 30. Nh5 {[%emt 0:00:25]} Nc3 {[%emt 0:06:10]} 31. Rxe8 {[%emt 0:00:41]} Rxe8 {[%emt 0:00:27]} 32. Re1 {[%emt 0:00:06]} Qc6 {[%emt 0:01:36]} 33. Nxh6+ {[%emt 0:03:25]} Kh7 {[%emt 0:00:49]} 34. Nf7 {[%emt 0:00:14]} Kg8 {[%emt 0:03:18]} 35. Ne5 {[%emt 0:01:48]} Nxe5 {[%emt 0:00:18]} 36. fxe5 {[%emt 0:00:05]} Be7 {[%emt 0:01:41]} 37. Qg2 {[%emt 0:05:02]} Qxg2+ {[%emt 0:01:05]} 38. Kxg2 {[%emt 0:00:06]} Bh4 {[%emt 0:00:50]} 39. Ng3 {[%emt 0:00:38]} Bxg3 {[%emt 0:01:25]} 40. Kxg3 {[%emt 0:00:00]} Kf7 {[%emt 0:00:00]} 41. h4 {[%emt 0:05:03]} Ke6 {[%emt 0:01:49]} 42. h5 {[%emt 0:06:02]} Kd5 {[%emt 0:05:00]} 43. Bf4 {[%emt 0:02:48]} c4 {[%emt 0:05:49]} 44. bxc4+ {[%emt 0:05:21]} Kxc4 {[%emt 0:00:15]} 45. e6 {[%emt 0:02:21]} d3 {[%emt 0:01:13]} 46. cxd3+ {[%emt 0:00:00]} Kxd3 {[%emt 0:00:18]} 47. Be5 {[%emt 0:06:21]} Rxe6 {[%emt 0:02:13]} 48. Bxc3 {[%emt 0:00:04]} Rxe1 {[%emt 0:00:09]} 49. Bxb4 {[%emt 0:00:03]} Rf1 {[%emt 0:05:00]} 50. Ba3 {[%emt 0:01:34]} Ke4 {[%emt 0:02:54]} 51. Bb2 {[%emt 0:00:07]} Rg1+ {[%emt 0:01:59]} 52. Kh4 {[%emt 0:04:34]} Kf4 {[%emt 0:00:49]} 53. Kh3 {[%emt 0:00:09]} Rg3+ {[%emt 0:00:26]} 54. Kh4 {[%emt 0:00:42]} Rxg4+ {[%emt 0:00:18]} 55. Kh3 {[%emt 0:00:03]} Kg5 {[%emt 0:01:37]} 56. Bxg7 {[%emt 0:00:14]} Kxh5 {[%emt 0:00:16]} 57. Be5 {[%emt 0:00:18]} Rxa4 {[%emt 0:00:10]} 58. Kg3 {[%emt 0:00:07]} Kg5 {[%emt 0:02:00]} 59. Kf3 {[%emt 0:00:06]} Kf5 {[%emt 0:00:07]} 60. Bg7 {[%emt 0:00:25]} Ra3+ {[%emt 0:01:33]} 61. Ke2 {[%emt 0:00:10]} a5 {[%emt 0:01:09]} 62. Kd2 {[%emt 0:00:03]} Rb3 {[%emt 0:00:15]} 63. Kc2 {[%emt 0:00:08]} a4 {[%emt 0:00:05]} 0-1

[Event "WYCC 2018 O16"]
[Site "Halkidiki"]
[Date "2018.10.27"]
[Round "8"]
[White "Ibrahimli, Murad"]
[Black "Sankalp Gupta"]
[Result "1/2-1/2"]
[ECO "E16"]
[WhiteElo "2379"]
[BlackElo "2352"]
[Annotator "NA"]
[PlyCount "144"]
[EventDate "2018.10.20"]
[EventType "swiss"]
[EventCountry "GRE"]
[SourceTitle "playchess.com"]
[Source "ChessBase"]
[SourceQuality "1"]
[TimeControl "40/5400+30:1800+30"]

1. d4 {[%emt 0:00:00]} Nf6 {[%emt 0:00:00]} 2. c4 {[%emt 0:00:06]} e6 {[%emt 0:00:00]} 3. Nf3 {[%emt 0:00:13]} b6 {[%emt 0:00:00]} 4. g3 {[%emt 0:00:08]} Bb7 {[%emt 0:00:00]} 5. Bg2 {[%emt 0:00:07]} Bb4+ {[%emt 0:00:00]} 6. Bd2 {[%emt 0:00:34]} c5 {[%emt 0:00:00]} 7. O-O {[%emt 0:00:42]} O-O {[%emt 0:00:34]} 8. Nc3 {[%emt 0:03:02]} cxd4 {[%emt 0:01:06]} 9. Nb5 {[%emt 0:00:36]} Be7 {[%emt 0:08:20]} 10. Nbxd4 {[%emt 0:07:26]} Nc6 {[%emt 0:02:01]} 11. Ne5 {[%emt 0:26:33]} Qc8 {[%emt 0:06:47]} 12. Ndxc6 {[%emt 0:06:04]} dxc6 {[%emt 0:00:45]} 13. Qa4 {[%emt 0:00:19]} c5 {[%emt 0:07:24]} 14. Nc6 {[%emt 0:00:59]} Bd6 {[%emt 0:00:07]} 15. Bf4 {[%emt 0:10:48]} Qc7 {[%emt 0:00:52]} 16. Ne7+ {[%emt 0:00:37]} Qxe7 {[%emt 0:00:30]} 17. Bxd6 {[%emt 0:00:14]} Qxd6 {[%emt 0:00:07]} 18. Bxb7 {[%emt 0:00:04]} Rab8 {[%emt 0:01:00]} 19. Bf3 {[%emt 0:01:39]} Qc7 {[%emt 0:00:30]} 20. Rad1 {[%emt 0:02:44]} Rfd8 {[%emt 0:00:39]} 21. Qa6 {[%emt 0:03:44]} g6 {[%emt 0:05:55]} 22. Qa3 {[%emt 0:07:09]} Kg7 {[%emt 0:05:29]} 23. Qc3 {[%emt 0:00:47]} Rxd1 {[%emt 0:04:23]} 24. Rxd1 {[%emt 0:00:02]} Rd8 {[%emt 0:00:13]} 25. Rf1 {[%emt 0:01:20]} Qd6 {[%emt 0:02:30]} 26. e3 {[%emt 0:02:21]} Qd2 {[%emt 0:07:25]} 27. Qe5 {[%emt 0:01:46]} Qd6 {[%emt 0:00:43]} 28. Qc3 {[%emt 0:01:13]} h5 {[%emt 0:04:25]} 29. Rd1 {[%emt 0:03:40]} Qc7 {[%emt 0:00:24]} 30. Rb1 {[%emt 0:03:38]} Qd6 {[%emt 0:00:35]} 31. Rd1 {[%emt 0:00:08]} Qc7 {[%emt 0:00:02]} 32. Rxd8 {[%emt 0:09:37]} Qxd8 {[%emt 0:00:06]} 33. Qe5 {[%emt 0:00:06]} Kg8 {[%emt 0:01:34]} 34. h3 {[%emt 0:03:32]} Nh7 {[%emt 0:02:08]} 35. Kg2 {[%emt 0:03:28]} Nf8 {[%emt 0:07:02]} 36. b3 {[%emt 0:01:36]} Qd2 {[%emt 0:02:20]} 37. Qc7 {[%emt 0:00:08]} Qd7 {[%emt 0:02:17]} 38. Qb8 {[%emt 0:00:07]} Kg7 {[%emt 0:00:58]} 39. Bb7 {[%emt 0:00:07]} g5 {[%emt 0:06:36]} 40. Qxa7 {[%emt 0:00:00]} Qc7 {[%emt 0:00:00]} 41. Qa8 {[%emt 0:01:18]} Ng6 {[%emt 0:02:20]} 42. Be4 {[%emt 0:04:12]} Ne7 {[%emt 0:01:00]} 43. Bf3 {[%emt 0:04:51]} h4 {[%emt 0:00:19]} 44. gxh4 {[%emt 0:00:04]} Ng6 {[%emt 0:02:51]} 45. hxg5 {[%emt 0:05:14]} Qe5 {[%emt 0:00:37]} 46. Qe4 {[%emt 0:01:00]} Qxg5+ {[%emt 0:00:06]} 47. Qg4 {[%emt 0:00:40]} Qd8 {[%emt 0:00:59]} 48. Qg3 {[%emt 0:06:02]} Kh6 {[%emt 0:00:08]} 49. Be4 {[%emt 0:03:11]} f5 {[%emt 0:01:31]} 50. Bc6 {[%emt 0:00:03]} e5 {[%emt 0:01:46]} 51. e4 {[%emt 0:05:29]} Nf4+ {[%emt 0:11:32]} 52. Kh2 {[%emt 0:00:27]} Nh5 {[%emt 0:00:31]} 53. Qf3 {[%emt 0:04:21]} f4 {[%emt 0:00:11]} 54. Bd5 {[%emt 0:00:05]} Nf6 {[%emt 0:01:38]} 55. Qg2 {[%emt 0:01:25]} Qe7 {[%emt 0:09:54]} 56. a4 {[%emt 0:01:14]} Qe8 {[%emt 0:02:57]} 57. h4 {[%emt 0:00:49]} Qh5 {[%emt 0:00:09]} 58. Qg5+ {[%emt 0:00:36]} Qxg5 {[%emt 0:00:05]} 59. hxg5+ {[%emt 0:00:04]} Kxg5 {[%emt 0:00:01]} 60. Kg2 {[%emt 0:00:12]} Ne8 {[%emt 0:01:18]} 61. Be6 {[%emt 0:00:47]} Kf6 {[%emt 0:00:59]} 62. Bd7 {[%emt 0:00:12]} Nc7 {[%emt 0:00:07]} 63. Bc8 {[%emt 0:00:06]} Ke7 {[%emt 0:00:07]} 64. Kf3 {[%emt 0:01:31]} Kd8 {[%emt 0:00:01]} 65. Bg4 {[%emt 0:00:34]} Na6 {[%emt 0:00:09]} 66. Ke2 {[%emt 0:00:06]} Nb4 {[%emt 0:00:20]} 67. Kd2 {[%emt 0:00:20]} Ke7 {[%emt 0:01:07]} 68. Be2 {[%emt 0:00:22]} Ke6 {[%emt 0:00:15]} 69. Bg4+ {[%emt 0:00:56]} Ke7 {[%emt 0:00:01]} 70. Kc3 {[%emt 0:00:29]} Kd6 {[%emt 0:00:10]} 71. Bh3 {[%emt 0:00:49]} Ke7 {[%emt 0:00:45]} 72. Kd2 {[%emt 0:00:18]} Kf6 {[%emt 0:00:13]} 1/2-1/2

[Event "WYCC 2018 O16"]
[Site "Halkidiki"]
[Date "2018.10.27"]
[Round "8"]
[White "Gatineau, Yovann"]
[Black "Chukavin, Kirill"]
[Result "1-0"]
[ECO "A46"]
[WhiteElo "2376"]
[BlackElo "2274"]
[Annotator "NA"]
[PlyCount "111"]
[EventDate "2018.10.20"]
[EventType "swiss"]
[EventCountry "GRE"]
[SourceTitle "playchess.com"]
[Source "ChessBase"]
[SourceQuality "1"]
[TimeControl "40/5400+30:1800+30"]

1. d4 {[%emt 0:00:00]} Nf6 {[%emt 0:00:00]} 2. Nf3 {[%emt 0:00:11]} e6 {[%emt 0:00:00]} 3. g3 {[%emt 0:00:18]} b5 {[%emt 0:03:36]} 4. Qd3 {[%emt 0:00:57]} b4 {[%emt 0:10:33]} 5. e4 {[%emt 0:00:51]} Ba6 {[%emt 0:00:55]} 6. Qe3 {[%emt 0:00:06]} Bxf1 {[%emt 0:00:46]} 7. Kxf1 {[%emt 0:00:04]} d5 {[%emt 0:00:47]} 8. e5 {[%emt 0:01:32]} Nfd7 {[%emt 0:01:53]} 9. a3 {[%emt 0:03:03]} c5 {[%emt 0:06:15]} 10. axb4 {[%emt 0:04:45]} cxb4 {[%emt 0:00:28]} 11. Kg2 {[%emt 0:00:45]} a5 {[%emt 0:02:02]} 12. h4 {[%emt 0:09:14]} h5 {[%emt 0:13:00]} 13. Ng5 {[%emt 0:05:11]} Nb6 {[%emt 0:01:35]} 14. f4 {[%emt 0:04:28]} g6 {[%emt 0:03:32]} 15. Qd3 {[%emt 0:12:27]} Qd7 {[%emt 0:03:34]} 16. Nd2 {[%emt 0:07:21]} a4 {[%emt 0:13:10]} 17. Nf1 {[%emt 0:01:35]} Nc6 {[%emt 0:01:50]} 18. Ne3 {[%emt 0:01:31]} Be7 {[%emt 0:13:23]} 19. Rd1 {[%emt 0:10:15]} Na5 {[%emt 0:06:00]} 20. b3 {[%emt 0:01:38]} a3 {[%emt 0:03:03]} 21. Bd2 {[%emt 0:02:59]} Nc6 {[%emt 0:00:52]} 22. Rdc1 {[%emt 0:00:29]} Na7 {[%emt 0:01:09]} 23. Qe2 {[%emt 0:06:02]} Nb5 {[%emt 0:00:58]} 24. Qe1 {[%emt 0:00:23]} Nxd4 {[%emt 0:02:39]} 25. Bxb4 {[%emt 0:00:05]} Qb5 {[%emt 0:01:26]} 26. Bxe7 {[%emt 0:00:38]} Kxe7 {[%emt 0:00:02]} 27. c4 {[%emt 0:04:52]} dxc4 {[%emt 0:01:56]} 28. bxc4 {[%emt 0:00:10]} Qc6+ {[%emt 0:02:28]} 29. Kh3 {[%emt 0:00:05]} Rhc8 {[%emt 0:02:50]} 30. Rcb1 {[%emt 0:06:29]} Ra4 {[%emt 0:03:12]} 31. Qd1 {[%emt 0:00:51]} Nxc4 {[%emt 0:01:03]} 32. Qxd4 {[%emt 0:00:17]} Nxe3 {[%emt 0:00:31]} 33. Qxe3 {[%emt 0:00:11]} a2 {[%emt 0:00:22]} 34. Rd1 {[%emt 0:04:32]} Kf8 {[%emt 0:00:29]} 35. Qb3 {[%emt 0:02:37]} Rca8 {[%emt 0:00:19]} 36. Rd6 {[%emt 0:00:53]} Qc8 {[%emt 0:00:34]} 37. Qd1 {[%emt 0:04:16]} R4a7 {[%emt 0:00:39]} 38. f5 {[%emt 0:04:19]} exf5 {[%emt 0:00:32]} 39. e6 {[%emt 0:00:13]} f4 {[%emt 0:00:33]} 40. Rd7 {[%emt 0:00:00]} Rxd7 {[%emt 0:00:00]} 41. exd7 {[%emt 0:06:14]} Qc3 {[%emt 0:03:48]} 42. Ne4 {[%emt 0:01:45]} Qc7 {[%emt 0:02:34]} 43. Rxa2 {[%emt 0:01:03]} Rd8 {[%emt 0:01:01]} 44. Rd2 {[%emt 0:00:43]} Qe5 {[%emt 0:02:55]} 45. Ng5 {[%emt 0:06:12]} fxg3 {[%emt 0:11:09]} 46. Qf3 {[%emt 0:02:45]} Qe7 {[%emt 0:02:01]} 47. Qd5 {[%emt 0:00:38]} Kg7 {[%emt 0:02:35]} 48. Kxg3 {[%emt 0:00:56]} Qe3+ {[%emt 0:04:18]} 49. Kg2 {[%emt 0:00:07]} Qe7 {[%emt 0:00:32]} 50. Kf3 {[%emt 0:05:14]} Kf8 {[%emt 0:04:02]} 51. Kf4 {[%emt 0:01:49]} Qb4+ {[%emt 0:01:01]} 52. Rd4 {[%emt 0:00:35]} Qe7 {[%emt 0:00:10]} 53. Qd6 {[%emt 0:02:29]} Qxd6+ {[%emt 0:00:55]} 54. Rxd6 {[%emt 0:00:05]} Ke7 {[%emt 0:00:17]} 55. Ke5 {[%emt 0:00:08]} Rf8 {[%emt 0:00:44]} 56. Nxf7 {[%emt 0:00:30]} 1-0

[Event "WYCC 2018 O16"]
[Site "Halkidiki"]
[Date "2018.10.27"]
[Round "8"]
[White "Stoleriu, George"]
[Black "Stefan, Victor"]
[Result "1-0"]
[ECO "B90"]
[WhiteElo "2362"]
[BlackElo "1998"]
[Annotator "NA"]
[PlyCount "73"]
[EventDate "2018.10.20"]
[EventType "swiss"]
[EventCountry "GRE"]
[SourceTitle "playchess.com"]
[Source "ChessBase"]
[SourceQuality "1"]
[TimeControl "40/5400+30:1800+30"]

1. e4 {[%emt 0:00:29]} c5 {[%emt 0:00:00]} 2. Nf3 {[%emt 0:01:37]} d6 {[%emt 0:00:00]} 3. d4 {[%emt 0:00:32]} cxd4 {[%emt 0:00:00]} 4. Nxd4 {[%emt 0:00:04]} Nf6 {[%emt 0:00:10]} 5. Nc3 {[%emt 0:00:04]} a6 {[%emt 0:00:20]} 6. a4 {[%emt 0:00:04]} g6 {[%emt 0:00:27]} 7. Be2 {[%emt 0:08:37]} Bg7 {[%emt 0:00:09]} 8. Be3 {[%emt 0:02:36]} O-O {[%emt 0:00:29]} 9. O-O {[%emt 0:00:52]} Nbd7 {[%emt 0:00:51]} 10. a5 {[%emt 0:02:22]} Qc7 {[%emt 0:05:54]} 11. Nd5 {[%emt 0:14:21]} Qd8 {[%emt 0:08:03]} 12. f3 {[%emt 0:06:31]} e5 {[%emt 0:00:35]} 13. Nb3 {[%emt 0:01:57]} Nxd5 {[%emt 0:00:09]} 14. exd5 {[%emt 0:00:57]} f5 {[%emt 0:03:40]} 15. f4 {[%emt 0:12:34]} exf4 {[%emt 0:12:46]} 16. Bxf4 {[%emt 0:03:04]} Nf6 {[%emt 0:19:50]} 17. Bf3 {[%emt 0:08:34]} Ng4 {[%emt 0:10:55]} 18. c3 {[%emt 0:05:46]} g5 {[%emt 0:02:14]} 19. Bxg4 {[%emt 0:02:21]} fxg4 {[%emt 0:00:30]} 20. Be3 {[%emt 0:01:33]} Rxf1+ {[%emt 0:05:42]} 21. Qxf1 {[%emt 0:00:21]} g3 {[%emt 0:01:02]} 22. hxg3 {[%emt 0:01:22]} Be5 {[%emt 0:02:55]} 23. Bd4 {[%emt 0:09:33]} Bxg3 {[%emt 0:05:22]} 24. Qf3 {[%emt 0:01:37]} Bf4 {[%emt 0:00:39]} 25. Re1 {[%emt 0:02:17]} Qf8 {[%emt 0:18:33]} 26. g3 {[%emt 0:01:09]} Be5 {[%emt 0:00:09]} 27. Qxf8+ {[%emt 0:01:36]} Kxf8 {[%emt 0:00:02]} 28. Bxe5 {[%emt 0:00:08]} dxe5 {[%emt 0:00:05]} 29. Rxe5 {[%emt 0:00:03]} h6 {[%emt 0:00:26]} 30. Nc5 {[%emt 0:01:32]} Bg4 {[%emt 0:00:55]} 31. Kf2 {[%emt 0:02:59]} Kf7 {[%emt 0:01:19]} 32. Ke3 {[%emt 0:00:57]} Rb8 {[%emt 0:00:47]} 33. b4 {[%emt 0:01:16]} Kf6 {[%emt 0:00:53]} 34. Kd4 {[%emt 0:00:13]} Rg8 {[%emt 0:00:34]} 35. Nxb7 {[%emt 0:00:46]} h5 {[%emt 0:00:07]} 36. Nd6 {[%emt 0:00:17]} h4 {[%emt 0:00:55]} 37. Ne4+ {[%emt 0:00:08]} 1-0

[Event "WYCC 2018 O16"]
[Site "Halkidiki"]
[Date "2018.10.27"]
[Round "8"]
[White "Wachinger, Nikolas"]
[Black "Stevanic, David"]
[Result "0-1"]
[ECO "C88"]
[WhiteElo "2360"]
[BlackElo "2281"]
[Annotator "NA"]
[PlyCount "60"]
[EventDate "2018.10.20"]
[EventType "swiss"]
[EventCountry "GRE"]
[SourceTitle "playchess.com"]
[Source "ChessBase"]
[SourceQuality "1"]
[TimeControl "40/5400+30:1800+30"]

1. e4 {[%emt 0:00:00]} e5 {[%emt 0:00:00]} 2. Nf3 {[%emt 0:00:00]} Nc6 {[%emt 0:00:00]} 3. Bb5 {[%emt 0:00:00]} a6 {[%emt 0:00:00]} 4. Ba4 {[%emt 0:00:00]} Nf6 {[%emt 0:00:00]} 5. O-O {[%emt 0:00:00]} Be7 {[%emt 0:00:09]} 6. Re1 {[%emt 0:00:06]} b5 {[%emt 0:00:06]} 7. Bb3 {[%emt 0:00:05]} O-O {[%emt 0:00:08]} 8. a4 {[%emt 0:00:06]} b4 {[%emt 0:00:44]} 9. d4 {[%emt 0:00:08]} d6 {[%emt 0:00:37]} 10. dxe5 {[%emt 0:01:27]} dxe5 {[%emt 0:01:02]} 11. Nbd2 {[%emt 0:00:10]} Bc5 {[%emt 0:02:53]} 12. a5 {[%emt 0:00:09]} Ng4 {[%emt 0:01:14]} 13. Rf1 {[%emt 0:06:23]} Nf6 {[%emt 0:00:47]} 14. h3 {[%emt 0:01:14]} Qe7 {[%emt 0:02:05]} 15. Bc4 {[%emt 0:06:44]} Be6 {[%emt 0:08:06]} 16. Qe2 {[%emt 0:00:32]} Nh5 {[%emt 0:05:44]} 17. Nb3 {[%emt 0:03:33]} Ng3 {[%emt 0:02:33]} 18. Qd3 {[%emt 0:02:20]} Nxf1 {[%emt 0:02:13]} 19. Bxe6 {[%emt 0:27:53]} fxe6 {[%emt 0:01:54]} 20. Bg5 {[%emt 0:00:49]} Rxf3 {[%emt 0:23:11]} 21. Qxf3 {[%emt 0:00:07]} Qxg5 {[%emt 0:00:07]} 22. Nxc5 {[%emt 0:00:05]} Nd2 {[%emt 0:00:34]} 23. Qd3 {[%emt 0:00:11]} Nd4 {[%emt 0:14:56]} 24. Rd1 {[%emt 0:01:36]} Rf8 {[%emt 0:08:46]} 25. c3 {[%emt 0:05:36]} N4f3+ {[%emt 0:07:05]} 26. Kh1 {[%emt 0:02:52]} Qf4 {[%emt 0:00:12]} 27. g3 {[%emt 0:01:07]} Qh6 {[%emt 0:03:42]} 28. Kg2 bxc3 29. bxc3 {[%emt 0:00:46]} Qf6 {[%emt 0:01:54]} 30. Rxd2 {[%emt 0:03:52]} Ne1+ {[%emt 0:00:15]} 0-1

[Event "WYCC 2018 O16"]
[Site "Halkidiki"]
[Date "2018.10.27"]
[Round "8"]
[White "Baenziger, Fabian"]
[Black "Hernandez Luna, Jose Angel"]
[Result "1-0"]
[ECO "D02"]
[WhiteElo "2355"]
[BlackElo "1913"]
[Annotator "NA"]
[PlyCount "65"]
[EventDate "2018.10.20"]
[EventType "swiss"]
[EventCountry "GRE"]
[SourceTitle "playchess.com"]
[Source "ChessBase"]
[SourceQuality "1"]
[TimeControl "40/5400+30:1800+30"]

1. d4 {[%emt 0:00:00]} d5 {[%emt 0:00:19]} 2. Nf3 {[%emt 0:00:19]} Nf6 {[%emt 0:00:38]} 3. c4 {[%emt 0:00:05]} e6 {[%emt 0:00:12]} 4. g3 {[%emt 0:00:16]} Nbd7 {[%emt 0:01:05]} 5. Bg2 {[%emt 0:01:26]} c6 {[%emt 0:03:34]} 6. Qc2 {[%emt 0:01:16]} Bd6 {[%emt 0:00:00]} 7. O-O {[%emt 0:01:07]} O-O {[%emt 0:02:46]} 8. Nbd2 {[%emt 0:00:36]} b6 {[%emt 0:06:12]} 9. e4 {[%emt 0:01:06]} dxe4 {[%emt 0:00:11]} 10. Nxe4 {[%emt 0:04:55]} Nxe4 {[%emt 0:00:10]} 11. Qxe4 $11 {[%emt 0:00:02]} Bb7 {[%emt 0:00:14]} 12. b3 {[%emt 0:03:19]} Re8 {[%emt 0:03:58]} 13. Bb2 {[%emt 0:01:34]} Qc7 {[%emt 0:00:43]} 14. Rad1 {[%emt 0:03:56]} c5 {[%emt 0:03:02]} 15. Qc2 {[%emt 0:02:28]} h6 {[%emt 0:01:24]} 16. Rfe1 {[%emt 0:10:28]} Rad8 {[%emt 0:01:30]} 17. Qe2 {[%emt 0:05:38]} a6 {[%emt 0:17:29]} 18. a3 {[%emt 0:08:16]} cxd4 {[%emt 0:00:39]} 19. Rxd4 {[%emt 0:00:03]} e5 {[%emt 0:04:53]} 20. Rdd1 {[%emt 0:02:03]} a5 {[%emt 0:02:19]} 21. Nd2 {[%emt 0:04:22]} Bxg2 {[%emt 0:00:51]} 22. Kxg2 {[%emt 0:00:04]} f5 {[%emt 0:00:30]} 23. Qh5 {[%emt 0:02:49]} Rf8 {[%emt 0:01:15]} 24. Nf3 {[%emt 0:02:10]} Rf6 {[%emt 0:06:09]} 25. Nxe5 {[%emt 0:02:29]} Nc5 {[%emt 0:11:15]} 26. Ng6 {[%emt 0:03:34]} Rf7 {[%emt 0:00:41]} 27. Nh4 {[%emt 0:00:05]} f4 {[%emt 0:00:57]} 28. Nf5 {[%emt 0:00:21]} fxg3 {[%emt 0:01:54]} 29. hxg3 {[%emt 0:01:14]} Nxb3 {[%emt 0:07:14]} 30. Nxh6+ {[%emt 0:00:42]} gxh6 {[%emt 0:00:22]} 31. Qg6+ {[%emt 0:00:03]} Rg7 {[%emt 0:00:41]} 32. Bxg7 {[%emt 0:00:15]} Qxg7 {[%emt 0:00:07]} 33. Rxd6 {[%emt 0:00:04]} 1-0

[Event "WYCC 2018 O16"]
[Site "Halkidiki"]
[Date "2018.10.27"]
[Round "8"]
[White "Petriashvili, Nikoloz"]
[Black "Abdisalimov, Abdimalik"]
[Result "0-1"]
[ECO "A46"]
[WhiteElo "2343"]
[BlackElo "2368"]
[Annotator "NA"]
[PlyCount "110"]
[EventDate "2018.10.20"]
[EventType "swiss"]
[EventCountry "GRE"]
[SourceTitle "playchess.com"]
[Source "ChessBase"]
[SourceQuality "1"]
[TimeControl "40/5400+30:1800+30"]

1. d4 {[%emt 0:00:00]} Nf6 {[%emt 0:00:00]} 2. Nf3 {[%emt 0:00:33]} e6 {[%emt 0:00:05]} 3. g3 {[%emt 0:00:04]} b5 {[%emt 0:04:17]} 4. Bg5 {[%emt 0:07:27]} Bb7 {[%emt 0:00:40]} 5. Nbd2 {[%emt 0:01:38]} d5 {[%emt 0:11:52]} 6. e3 $14 {[%emt 0:00:16] LiveBook: 4 Games} b4 {[%emt 0:03:26]} 7. c3 {[%emt 0:07:09]} a5 {[%emt 0:13:19]} 8. a3 {[%emt 0:04:03]} Nbd7 {[%emt 0:07:51]} 9. axb4 {[%emt 0:11:46]} axb4 {[%emt 0:00:06]} 10. Nb3 {[%emt 0:02:50]} bxc3 {[%emt 0:06:57]} 11. bxc3 {[%emt 0:00:05]} Ba3 {[%emt 0:03:11]} 12. Rb1 {[%emt 0:05:40]} Qc8 {[%emt 0:01:48]} 13. Bxf6 {[%emt 0:00:42]} Nxf6 {[%emt 0:01:22]} 14. Ne5 {[%emt 0:01:06]} O-O {[%emt 0:03:52]} 15. Nd3 {[%emt 0:01:52]} Ne4 {[%emt 0:02:06]} 16. Qc2 {[%emt 0:00:11]} Ba6 {[%emt 0:02:20]} 17. Nd2 {[%emt 0:13:39]} Nd6 {[%emt 0:04:34]} 18. Ra1 {[%emt 0:02:43]} Bb5 {[%emt 0:07:47]} 19. Ne5 {[%emt 0:09:48]} c5 {[%emt 0:07:41]} 20. Nb1 {[%emt 0:07:59]} Ba4 {[%emt 0:03:49]} 21. Qe2 {[%emt 0:01:08]} cxd4 {[%emt 0:08:38]} 22. Rxa3 {[%emt 0:00:18]} Nb5 {[%emt 0:00:38]} 23. Rxa4 {[%emt 0:02:47]} Rxa4 {[%emt 0:00:00]} 24. Qxb5 {[%emt 0:04:06]} dxc3 {[%emt 0:00:00]} 25. Bd3 {[%emt 0:10:06]} c2 {[%emt 0:00:00]} 26. Bxc2 {[%emt 0:00:13]} Qxc2 {[%emt 0:00:00]} 27. O-O {[%emt 0:00:04]} Ra2 {[%emt 0:00:00]} 28. Qb4 {[%emt 0:02:35]} Rb2 {[%emt 0:02:07]} 29. Na3 {[%emt 0:00:05]} Qxf2+ {[%emt 0:01:25]} 30. Rxf2 {[%emt 0:00:01]} Rxb4 {[%emt 0:00:00]} 31. Nc2 {[%emt 0:00:28]} Re4 {[%emt 0:00:25]} 32. Nc6 {[%emt 0:01:31]} f6 {[%emt 0:00:35]} 33. Kg2 {[%emt 0:00:16]} Kf7 {[%emt 0:02:09]} 34. N6d4 {[%emt 0:00:54]} Rc8 {[%emt 0:00:34]} 35. Rd2 {[%emt 0:00:05]} e5 {[%emt 0:02:01]} 36. Ne2 {[%emt 0:01:36]} Ke6 {[%emt 0:00:21]} 37. Kf2 {[%emt 0:00:02]} h5 {[%emt 0:00:34]} 38. Ne1 {[%emt 0:00:05]} h4 {[%emt 0:00:40]} 39. Ra2 {[%emt 0:00:14]} Rc6 {[%emt 0:01:23]} 40. Ra7 {[%emt 0:00:00]} g5 {[%emt 0:00:00]} 41. Ra2 {[%emt 0:02:17]} h3 {[%emt 0:02:47]} 42. Ra8 {[%emt 0:01:42]} g4 {[%emt 0:01:27]} 43. Rb8 {[%emt 0:00:34]} Rec4 {[%emt 0:01:06]} 44. Nd3 {[%emt 0:00:02]} Kf5 {[%emt 0:01:03]} 45. Ke1 {[%emt 0:00:12]} Ke4 {[%emt 0:01:34]} 46. Nf2+ {[%emt 0:00:56]} Kf3 {[%emt 0:04:14]} 47. e4 {[%emt 0:05:10]} d4 {[%emt 0:20:07]} 48. Rb3+ {[%emt 0:01:22]} Kg2 {[%emt 0:00:01]} 49. Nxg4 {[%emt 0:00:47]} Rc2 {[%emt 0:00:19]} 50. Ra3 {[%emt 0:09:41]} Rb2 {[%emt 0:02:05]} 51. Kd1 {[%emt 0:00:05]} Rcc2 {[%emt 0:01:18]} 52. Nc1 {[%emt 0:00:01]} Rc3 {[%emt 0:00:27]} 53. Rxc3 {[%emt 0:01:49]} dxc3 {[%emt 0:00:01]} 54. Ke1 {[%emt 0:00:01]} Kf3 {[%emt 0:00:27]} 55. Nxf6 {[%emt 0:00:15]} Rxh2 0-1